bitfinex-derivatives/quotes_BTCF0:USTF0_20250422
["timestamp","ask_amount","ask_price","bid_price","bid_amount"]
[1745351512970,0.1304,91319.0,91318.0,0.1134285]
[1745351516573,0.1304,91319.0,91318.0,0.004]
[1745351517966,0.2398273,91319.0,91318.0,0.004]
[1745351518370,0.3626273,91319.0,91318.0,0.004]
[1745351519865,0.3626273,91319.0,91317.0,0.1094295]
[1745351520168,0.3626273,91319.0,91315.0,0.054716]
[1745351520376,0.3626273,91319.0,91316.0,0.1094305]
[1745351520674,0.1094291,91318.0,91315.0,0.1094315]
[1745351521067,0.2639,91317.0,91315.0,0.1094315]
[1745351521776,0.2639,91317.0,91316.0,0.1254]
[1745351522272,0.2639,91317.0,91316.0,0.2348419]
[1745351523073,0.2639,91317.0,91316.0,0.2378419]
[1745351524273,0.2639,91317.0,91316.0,0.2388419]
[1745351525278,0.2639,91317.0,91316.0,0.21256798]
[1745351528779,0.3733407,91317.0,91316.0,0.004]
[1745351529176,0.5653407,91317.0,91316.0,0.004]
[1745351530179,0.4559,91317.0,91311.0,0.3608]
[1745351530380,0.4559,91317.0,91316.0,0.1094419]
[1745351530677,0.3608,91344.0,91340.0,0.0547064]
[1745351530879,0.3608,91354.0,91348.0,0.1094035]
[1745351531078,0.3608,91354.0,91344.0,0.0547037]
[1745351531382,0.3608,91354.0,91348.0,0.1094035]
[1745351531780,0.3608,91354.0,91346.0,0.1094056]
[1745351531981,0.470197,91354.0,91347.0,0.1094045]
[1745351532178,0.012,91349.0,91348.0,0.001]
[1745351532375,0.012,91349.0,91348.0,0.1104035]
[1745351532576,0.012,91349.0,91348.0,0.001]
[1745351533077,0.014,91349.0,91346.0,0.2351058]
[1745351533380,0.2566,91348.0,91346.0,0.10043338]
[1745351533581,0.2566,91348.0,91346.0,0.20983928]
[1745351533883,0.2566,91348.0,91343.0,0.1094084]
[1745351534086,0.2566,91348.0,91345.0,0.1094068]
[1745351534401,0.022,91349.0,91348.0,0.1094035]
[1745351534584,0.43352,91366.0,91356.0,0.100394]
[1745351534585,0.254,91357.0,91356.0,0.100394]
[1745351535377,0.254,91357.0,91356.0,0.093394]
[1745351535878,0.254,91357.0,91356.0,0.094394]
[1745351535879,0.259,91357.0,91356.0,0.094394]
[1745351536073,0.259,91357.0,91356.0,0.090394]
[1745351536878,0.262,91357.0,91356.0,0.001]
[1745351537476,0.259,91357.0,91356.0,0.001]
[1745351537677,0.262,91357.0,91356.0,0.001]
[1745351538384,0.257,91357.0,91356.0,0.001]
[1745351538874,0.257,91357.0,91356.0,0.1348]
[1745351539073,0.257,91357.0,91356.0,0.1358]
[1745351539888,0.254,91357.0,91356.0,0.1398]
[1745351540089,0.254,91357.0,91356.0,0.1438]
[1745351540687,0.254,91357.0,91356.0,0.1358]
[1745351540895,0.254,91357.0,91356.0,0.12612057]
[1745351541783,0.254,91357.0,91356.0,0.12512057]
[1745351541986,0.254,91357.0,91356.0,0.12612057]
[1745351542184,0.3633928,91357.0,91356.0,0.12612057]
[1745351542378,0.3633928,91357.0,91356.0,0.005]
[1745351542580,0.3633928,91357.0,91356.0,0.003]
[1745351542581,0.4897928,91357.0,91356.0,0.003]
[1745351542983,0.0547016,91349.0,91339.0,0.00016425]
[1745351543288,0.1094131,91340.0,91339.0,0.00016425]
[1745351544084,0.5483131,91340.0,91339.0,0.00016425]
[1745351545978,0.5483131,91340.0,91339.0,0.00116425]
[1745351546387,0.5483131,91340.0,91339.0,0.00083855]
[1745351547093,0.5483131,91340.0,91329.0,0.1217]
[1745351547094,0.109421,91334.0,91329.0,0.2311258]
[1745351547287,0.3766218,91333.0,91329.0,0.2311258]
[1745351547488,0.2672,91333.0,91329.0,0.2311258]
[1745351547691,0.2672,91333.0,91330.0,0.1094249]
[1745351548899,0.2672,91333.0,91330.0,0.003]
[1745351549400,0.1641358,91331.0,91330.0,0.003]
[1745351549690,0.1641358,91331.0,91330.0,0.006]
[1745351549886,0.109492,91331.0,91315.0,0.00836114]
[1745351550086,0.1094453,91314.0,91306.0,0.20276]
[1745351550286,0.3608,91316.0,91306.0,0.20276]
[1745351550287,0.3608,91308.0,91307.0,0.1094526]
[1745351550594,0.3608,91308.0,91307.0,0.1302]
[1745351550785,0.1094527,91307.0,91306.0,0.07256]
[1745351550981,0.2609,91307.0,91306.0,0.07256]
[1745351551183,0.3703527,91307.0,91306.0,0.07256]
[1745351551388,0.3703527,91307.0,91306.0,0.05887355]
[1745351551984,0.3703527,91307.0,91306.0,0.06587355]
[1745351552187,0.3713527,91307.0,91306.0,0.07487355]
[1745351552390,0.2619,91307.0,91306.0,0.016]
[1745351552995,0.2629,91307.0,91306.0,0.018]
[1745351553186,0.3723527,91307.0,91306.0,0.018]
[1745351553588,0.2629,91307.0,91306.0,0.018]
[1745351555891,0.2629,91307.0,91306.0,0.1274539]
[1745351556296,0.2619,91307.0,91306.0,0.1194539]
[1745351556490,0.2619,91307.0,91306.0,0.09317747]
[1745351556907,0.2619,91307.0,91306.0,0.22427747]
[1745351557585,0.2609,91307.0,91306.0,0.22527747]
[1745351558596,0.2609,91307.0,91306.0,0.22627747]
[1745351560295,0.2609,91307.0,91306.0,0.22727747]
[1745351560989,0.00016425,91316.0,91315.0,0.1094431]
[1745351561193,0.00016425,91316.0,91315.0,0.4682431]
[1745351561391,0.1382,91330.0,91329.0,0.1094263]
[1745351562084,0.1382,91330.0,91329.0,0.1084263]
[1745351562585,0.1311,91331.0,91330.0,0.1094251]
[1745351563085,0.2637,91331.0,91330.0,0.3004251]
[1745351563394,0.2637,91331.0,91330.0,0.4258251]
[1745351563797,0.2677,91331.0,91330.0,0.4268251]
[1745351564699,0.2677,91331.0,91330.0,0.3204]
[1745351564994,0.2677,91331.0,91330.0,0.4298251]
[1745351564995,0.2657,91331.0,91330.0,0.4298251]
[1745351565195,0.2667,91331.0,91330.0,0.2378251]
[1745351565996,0.2657,91331.0,91330.0,0.22414236]
[1745351567404,0.2657,91331.0,91327.0,0.1094282]
[1745351568997,0.2633,91324.0,91323.0,0.3608]
[1745351569192,0.3727323,91324.0,91323.0,0.3608]
[1745351569393,0.3727323,91324.0,91320.0,0.00016425]
[1745351569394,0.1094359,91321.0,91320.0,0.00016425]
[1745351570398,0.1094359,91321.0,91320.0,0.00316425]
[1745351570699,0.1104359,91321.0,91320.0,0.00316425]
[1745351571091,0.1094359,91321.0,91320.0,0.00316425]
[1745351571292,0.1104359,91321.0,91320.0,0.00316425]
[1745351572201,0.1104359,91321.0,91320.0,0.00116425]
[1745351573200,0.1094359,91321.0,91320.0,0.00116425]
[1745351573504,0.1104359,91321.0,91320.0,0.00116425]
[1745351573702,0.001,91321.0,91320.0,0.00116425]
[1745351573909,0.001,91321.0,91320.0,0.12756425]
[1745351574102,0.001,91321.0,91320.0,0.26326425]
[1745351574996,0.1104359,91321.0,91320.0,0.26326425]
[1745351575410,0.1104359,91321.0,91320.0,0.13686425]
[1745351576301,0.1104359,91321.0,91320.0,0.00116425]
[1745351577517,0.1104359,91321.0,91320.0,1e-08]
[1745351578105,0.3024359,91321.0,91320.0,1e-08]
[1745351578308,0.193,91321.0,91301.0,0.0547298]
[1745351578511,0.4702479,91312.0,91311.0,0.0547234]
[1745351578697,0.4702479,91312.0,91311.0,0.2446443]
[1745351578898,0.7334479,91312.0,91311.0,0.23095811]
[1745351579211,0.624,91312.0,91311.0,0.23095811]
[1745351579510,0.7334467,91312.0,91311.0,0.12151381]
[1745351580105,0.7344467,91312.0,91311.0,0.12151381]
[1745351580409,0.7334467,91312.0,91311.0,0.12151381]
[1745351580599,0.7334467,91312.0,91311.0,0.12351381]
[1745351581703,0.7334467,91312.0,91311.0,0.23296171]
[1745351581908,0.7334467,91312.0,91311.0,0.12351381]
[1745351582098,0.7334467,91312.0,91311.0,0.12151381]
[1745351582309,0.7344467,91312.0,91311.0,0.12151381]
[1745351583800,0.7334467,91312.0,91311.0,0.12151381]
[1745351584002,0.7344467,91312.0,91311.0,0.12151381]
[1745351584716,0.1094479,91311.0,91310.0,0.20881234]
[1745351584914,0.1094515,91308.0,91307.0,0.1318]
[1745351585710,0.1882251,91310.0,91307.0,0.1318]
[1745351585904,0.2394513,91309.0,91307.0,0.1318]
[1745351586214,0.2941764,91309.0,91307.0,0.1328]
[1745351586413,0.2340515,91308.0,91307.0,0.1328]
[1745351586808,0.3592515,91308.0,91307.0,0.1328]
[1745351587012,0.2498,91308.0,91307.0,0.1318]
[1745351587714,0.2498,91308.0,91307.0,0.1348]
[1745351589015,0.3592515,91308.0,91307.0,0.12111397]
[1745351589315,0.3592515,91308.0,91307.0,0.001]
[1745351589517,0.3592515,91308.0,91307.0,0.003]
[1745351590318,0.2498,91308.0,91307.0,0.003]
[1745351590910,0.2498,91308.0,91307.0,0.001]
[1745351591111,0.2498,91308.0,91307.0,0.003]
[1745351592706,0.2498,91308.0,91307.0,0.002]
[1745351592917,0.3592515,91308.0,91307.0,0.001]
[1745351593318,0.2498,91308.0,91307.0,0.001]
[1745351594214,0.3592515,91308.0,91307.0,0.001]
[1745351594422,0.2498,91308.0,91307.0,0.002]
[1745351594912,0.3592515,91308.0,91307.0,0.002]
[1745351595120,0.2498,91308.0,91303.0,0.1311]
[1745351595310,0.2498,91308.0,91307.0,0.002]
[1745351595510,0.3608,91315.0,91307.0,0.002]
[1745351595712,0.1256,91314.0,91308.0,0.2524]
[1745351596218,0.3608,91315.0,91308.0,0.2524]
[1745351596518,0.002,91315.0,91308.0,0.2524]
[1745351597116,0.002,91314.0,91308.0,0.4444]
[1745351598320,0.002,91314.0,91308.0,0.4454]
[1745351599324,0.1256,91319.0,91308.0,0.4454]
[1745351599513,0.1256,91319.0,91309.0,0.20881234]
[1745351600213,0.1256,91319.0,91309.0,0.40081234]
[1745351600414,0.1266,91319.0,91309.0,0.40081234]
[1745351600812,0.3608,91333.0,91314.0,0.3608]
[1745351601012,0.3608,91333.0,91323.0,0.56961234]
[1745351601013,0.1241,91329.0,91323.0,0.56961234]
[1745351601325,0.3608,91333.0,91324.0,0.267]
[1745351601528,0.1372,91332.0,91325.0,0.1358]
[1745351602218,0.001,91329.0,91325.0,0.1358]
[1745351602624,0.001,91329.0,91326.0,0.2634]
[1745351603220,0.001,91329.0,91326.0,0.4554]
[1745351603919,0.1372,91332.0,91326.0,0.4554]
[1745351605223,0.00016425,91338.0,91331.0,0.3608]
[1745351605422,0.00016425,91338.0,91332.0,0.2592]
[1745351605812,0.13546425,91338.0,91332.0,0.2592]
[1745351606016,0.13546425,91338.0,91332.0,0.27171253]
[1745351606217,0.1288,91337.0,91332.0,0.27171253]
[1745351606724,0.1353,91336.0,91332.0,0.27371253]
[1745351607120,0.1288,91335.0,91332.0,0.27371253]
[1745351607632,0.1323,91334.0,91332.0,0.27371253]
[1745351608020,0.1312,91333.0,91332.0,0.27371253]
[1745351608219,0.1312,91333.0,91332.0,0.46571253]
[1745351608825,0.1312,91333.0,91332.0,0.46471253]
[1745351609436,0.1312,91333.0,91332.0,0.46771253]
[1745351609638,0.1312,91333.0,91332.0,0.46871253]
[1745351610140,0.005,91349.0,91332.0,0.92520452]
[1745351610141,0.00164349,91347.0,91332.0,0.92520452]
[1745351610329,0.1312,91346.0,91343.0,0.3608]
[1745351610529,0.1312,91346.0,91344.0,0.3902]
[1745351610834,0.1285,91345.0,91344.0,0.3902]
[1745351611036,0.1285,91345.0,91344.0,0.46276]
[1745351611237,0.1285,91345.0,91344.0,0.07256]
[1745351611429,0.2582,91345.0,91344.0,0.07256]
[1745351612028,0.1285,91345.0,91344.0,0.07256]
[1745351612834,0.001,91345.0,91344.0,0.07256]
[1745351613235,0.00828972,91361.0,91344.0,0.07256]
[1745351613438,0.00828972,91361.0,91351.0,0.3608]
[1745351613637,0.00828972,91361.0,91352.0,0.2673]
[1745351614034,0.4149,91369.0,91352.0,0.2673]
[1745351614236,0.0546911,91366.0,91352.0,0.4038]
[1745351614435,0.4149,91369.0,91352.0,0.4038]
[1745351614640,0.0546904,91367.0,91352.0,0.4038]
[1745351614842,0.1093835,91365.0,91352.0,0.4038]
[1745351615044,0.4149,91369.0,91352.0,0.4038]
[1745351615541,0.00516425,91354.0,91352.0,0.4038]
[1745351616936,0.1335,91366.0,91352.0,0.4038]
[1745351617135,0.48758,91386.0,91362.0,0.3608]
[1745351617336,0.1335,91376.0,91363.0,0.3771]
[1745351617636,0.1093741,91373.0,91363.0,0.3771]
[1745351617944,0.1335,91376.0,91370.0,0.3608]
[1745351618445,0.297556,91376.0,91370.0,0.3608]
[1745351618740,0.1335,91376.0,91370.0,0.3558]
[1745351618938,0.1881855,91376.0,91370.0,0.3558]
[1745351619139,0.1263,91375.0,91370.0,0.3508]
[1745351619342,0.1263,91375.0,91370.0,0.3518]
[1745351619843,0.1263,91375.0,91370.0,0.3528]
[1745351620238,0.1219,91374.0,91370.0,0.3518]
[1745351620439,0.1219,91374.0,91371.0,0.1332]
[1745351620638,0.1331,91373.0,91371.0,0.1332]
[1745351621139,0.1219,91372.0,91371.0,0.1332]
[1745351622149,0.1219,91372.0,91371.0,0.2554]
[1745351622647,0.1381,91373.0,91371.0,0.2554]
[1745351622848,0.005,91372.0,91371.0,0.3803]
[1745351623150,0.005,91372.0,91371.0,0.2554]
[1745351623356,0.01,91372.0,91371.0,0.2554]
[1745351623649,0.2636,91372.0,91371.0,0.1222]
[1745351624542,0.2586,91372.0,91371.0,0.1222]
[1745351624744,0.2536,91372.0,91371.0,0.1222]
[1745351624944,0.2536,91372.0,91370.0,0.3508]
[1745351625343,0.2586,91372.0,91370.0,0.3508]
[1745351625747,0.2636,91372.0,91370.0,0.3508]
[1745351625949,0.01,91372.0,91370.0,0.3508]
[1745351626150,0.01,91372.0,91371.0,0.395]
[1745351626540,0.01,91372.0,91371.0,0.495]
[1745351626844,0.01,91372.0,91371.0,0.395]
[1745351627039,0.01,91372.0,91371.0,0.587]
[1745351627547,0.00016425,91377.0,91371.0,0.696444]
[1745351627747,0.00016425,91377.0,91371.0,0.587]
[1745351628147,0.01,91372.0,91371.0,0.587]
[1745351628538,0.01,91372.0,91371.0,0.696444]
[1745351628745,0.00216425,91377.0,91371.0,0.696444]
[1745351628947,0.00416425,91377.0,91376.0,0.3608]
[1745351629351,0.00216425,91377.0,91376.0,0.3598]
[1745351629551,0.00016425,91377.0,91376.0,0.3598]
[1745351629847,0.00016425,91377.0,91376.0,0.3588]
[1745351631355,0.00016425,91377.0,91376.0,0.3638]
[1745351631749,0.00016425,91377.0,91376.0,0.3688]
[1745351631943,0.00016425,91377.0,91376.0,0.35512547]
[1745351635152,0.25986425,91377.0,91376.0,0.35512547]
[1745351635549,0.12946425,91377.0,91376.0,0.35512547]
[1745351636558,0.12946425,91377.0,91376.0,0.61202547]
[1745351636757,0.00016425,91377.0,91376.0,0.61202547]
[1745351636953,0.00016425,91377.0,91376.0,0.48782547]
[1745351637159,0.26426425,91377.0,91376.0,0.48782547]
[1745351638461,0.26426425,91377.0,91376.0,0.46156936]
[1745351639354,0.26426425,91377.0,91376.0,0.32886936]
[1745351640254,0.12946425,91377.0,91376.0,0.32886936]
[1745351640958,0.12946425,91377.0,91376.0,0.57746936]
[1745351641550,0.00016425,91377.0,91376.0,0.57746936]
[1745351641756,0.4026888,91397.0,91376.0,0.68690536]
[1745351641957,0.1,91400.0,91396.0,0.3608]
[1745351642257,0.1262,91399.0,91397.0,0.1262]
[1745351642646,0.1244,91398.0,91397.0,0.11252697]
[1745351643552,0.1262,91399.0,91397.0,0.24672697]
[1745351643756,0.1262,91399.0,91397.0,0.24472697]
[1745351644457,0.001,91398.0,91397.0,0.24472697]
[1745351644851,0.003,91398.0,91397.0,0.24472697]
[1745351645159,0.002,91398.0,91397.0,0.24472697]
[1745351645356,0.1282,91399.0,91397.0,0.24472697]
[1745351645558,0.1302,91399.0,91397.0,0.24472697]
[1745351645747,0.1302,91399.0,91398.0,0.1224]
[1745351646148,0.004,91399.0,91398.0,0.2467]
[1745351646353,0.004,91399.0,91398.0,0.22044874]
[1745351646752,0.002,91399.0,91398.0,0.22044874]
[1745351646957,0.002,91399.0,91398.0,0.21944874]
[1745351647159,0.1,91400.0,91398.0,0.21844874]
[1745351647550,0.1,91400.0,91399.0,0.1277]
[1745351647950,0.1,91400.0,91399.0,0.2611]
[1745351649657,0.2093413,91400.0,91399.0,0.2611]
[1745351650352,0.4573463,91422.0,91399.0,0.37050799]
[1745351650553,0.05268174,91418.0,91412.0,0.3608]
[1745351650858,0.0546419,91449.0,91413.0,0.46276]
[1745351651064,0.1093138,91424.0,91422.0,0.3608]
[1745351651256,0.1093138,91424.0,91423.0,0.2562]
[1745351651455,0.1093138,91424.0,91423.0,0.2512]
[1745351652466,0.1093138,91424.0,91423.0,0.1201]
[1745351652651,0.2434138,91424.0,91423.0,0.19306]
[1745351652851,0.2434138,91424.0,91423.0,0.1201]
[1745351653165,0.4354138,91424.0,91423.0,0.10643105]
[1745351653756,0.4364138,91424.0,91423.0,0.10643105]
[1745351654968,0.193,91424.0,91423.0,0.10643105]
[1745351655167,0.001,91424.0,91423.0,0.22883105]
[1745351656057,0.1103126,91424.0,91423.0,0.10643105]
[1745351657162,0.4319126,91424.0,91423.0,0.10643105]
[1745351657466,0.4319126,91424.0,91422.0,0.3608]
[1745351657666,0.2396138,91423.0,91422.0,0.3608]
[1745351658061,0.4316138,91423.0,91422.0,0.3608]
[1745351659465,0.0546593,91420.0,91414.0,0.36096406]
[1745351659664,0.1093234,91415.0,91414.0,0.36096406]
[1745351660868,0.1093234,91415.0,91414.0,0.47028866]
[1745351661168,0.2314234,91415.0,91414.0,0.47028866]
[1745351662271,0.0546545,91427.0,91424.0,0.1093125]
[1745351662568,0.1231,91423.0,91422.0,0.109315]
[1745351662766,0.2324138,91423.0,91422.0,0.3608]
[1745351663068,0.1093162,91421.0,91420.0,0.1093169]
[1745351663464,0.5037575,91423.0,91420.0,0.1093169]
[1745351663972,0.4491,91423.0,91414.0,0.36296406]
[1745351664175,0.4491,91423.0,91420.0,0.002]
[1745351664176,0.5584147,91423.0,91420.0,0.002]
[1745351664471,0.0546585,91421.0,91420.0,0.003]
[1745351664973,0.4491,91423.0,91420.0,0.003]
[1745351665176,0.192,91421.0,91420.0,0.002]
[1745351665772,0.3013162,91421.0,91420.0,0.002]
[1745351665971,0.4275162,91421.0,91420.0,0.002]
[1745351666176,0.3728583,91421.0,91420.0,0.00101103]
[1745351666564,0.3728583,91421.0,91420.0,0.00201103]
[1745351666769,0.3182,91421.0,91420.0,0.003]
[1745351666966,0.4275162,91421.0,91420.0,0.003]
[1745351667370,0.3182,91421.0,91420.0,0.003]
[1745351667570,0.3182,91421.0,91415.0,0.0546616]
[1745351667773,0.2536,91420.0,91416.0,0.1093212]
[1745351668175,0.1262,91419.0,91416.0,0.1093212]
[1745351668375,0.1262,91419.0,91414.0,0.41562626]
[1745351668570,0.1284,91418.0,91416.0,0.1093221]
[1745351668774,0.1284,91418.0,91416.0,0.1113221]
[1745351668977,0.129,91417.0,91416.0,0.1113221]
[1745351669774,0.129,91417.0,91416.0,0.002]
[1745351670180,0.2574,91417.0,91416.0,0.002]
[1745351670378,0.129,91417.0,91416.0,0.1113222]
[1745351670570,0.1284,91429.0,91416.0,0.002]
[1745351670771,0.1093103,91426.0,91420.0,0.1639751]
[1745351670972,0.1093133,91424.0,91418.0,0.0546598]
[1745351671282,0.129,91425.0,91422.0,0.3608]
[1745351671482,0.2383138,91423.0,91422.0,0.3608]
[1745351671881,0.3608138,91423.0,91422.0,0.3608]
[1745351672380,0.2515,91423.0,91422.0,0.3608]
[1745351672779,0.2515,91423.0,91422.0,0.470115]
[1745351673478,0.129,91423.0,91422.0,0.470115]
[1745351673684,0.129,91423.0,91422.0,0.595915]
[1745351674077,0.4026888,91432.0,91429.0,0.1093061]
[1745351674377,0.1228,91430.0,91427.0,0.0546542]
[1745351675290,0.1228,91430.0,91428.0,0.1093074]
[1745351675479,0.1238,91430.0,91428.0,0.0830625]
[1745351675886,0.1238,91430.0,91424.0,0.0546563]
[1745351676087,0.1238,91430.0,91429.0,0.1093066]
[1745351676476,0.1228,91430.0,91429.0,0.1093066]
[1745351676678,0.1238,91430.0,91429.0,0.09563747]
[1745351676878,0.1248,91430.0,91429.0,0.09563747]
[1745351677985,0.1238,91430.0,91429.0,0.09563747]
[1745351678189,0.3168,91430.0,91427.0,0.1639626]
[1745351678482,0.3168,91430.0,91428.0,0.1093078]
[1745351678675,0.3168,91430.0,91429.0,0.1093066]
[1745351679282,0.3168,91430.0,91428.0,0.1313]
[1745351679283,0.1238,91430.0,91428.0,0.1313]
[1745351679483,0.1248,91430.0,91428.0,0.1313]
[1745351680082,0.1238,91430.0,91428.0,0.1313]
[1745351680283,0.002,91430.0,91429.0,0.1093066]
[1745351680483,0.005,91439.0,91438.0,0.1092959]
[1745351680684,0.1295,91446.0,91445.0,0.1092875]
[1745351681388,0.00164103,91452.0,91446.0,0.108286]
[1745351681587,0.1217,91450.0,91447.0,0.1295]
[1745351681784,0.2309823,91450.0,91447.0,0.1295]
[1745351681987,0.3549818,91450.0,91447.0,0.1295]
[1745351682290,0.2457,91450.0,91447.0,0.2387851]
[1745351682486,0.3549817,91450.0,91447.0,0.1275]
[1745351682882,0.2457,91450.0,91447.0,0.236785]
[1745351683091,0.3579816,91450.0,91447.0,0.236785]
[1745351683287,0.1092834,91449.0,91447.0,0.1275]
[1745351683590,0.1092834,91449.0,91447.0,0.10126199]
[1745351683793,0.1299,91448.0,91447.0,0.10126199]
[1745351684090,0.2391839,91448.0,91447.0,0.10126199]
[1745351684784,0.2391839,91448.0,91446.0,0.3608]
[1745351684785,0.1092851,91447.0,91446.0,0.3608]
[1745351684986,0.2361851,91447.0,91446.0,0.3608]
[1745351685191,0.4281851,91447.0,91446.0,0.3608]
[1745351686184,0.5617851,91447.0,91446.0,0.3608]
[1745351686892,0.5617851,91447.0,91446.0,0.34713402]
[1745351687696,0.5617851,91447.0,91446.0,0.45642032]
[1745351687697,0.3189,91447.0,91446.0,0.45642032]
[1745351687993,0.4281851,91447.0,91446.0,0.34713402]
[1745351688181,0.2361851,91447.0,91446.0,0.34713402]
[1745351688382,0.2371851,91447.0,91446.0,0.46923402]
[1745351689294,0.4291851,91447.0,91446.0,0.46923402]
[1745351689990,0.3199,91447.0,91446.0,0.57852032]
[1745351690190,0.3022851,91447.0,91446.0,0.1221]
[1745351690488,0.3022851,91447.0,91427.0,0.3608]
[1745351690489,0.0546454,91443.0,91427.0,0.3608]
[1745351690691,0.0546473,91439.0,91428.0,0.2577]
[1745351690888,0.0546485,91437.0,91430.0,0.1093048]
[1745351691091,0.109303,91432.0,91431.0,0.1253]
[1745351691394,0.1093018,91433.0,91431.0,0.1253]
[1745351691596,0.05465,91435.0,91431.0,0.1253]
[1745351691597,0.230503,91432.0,91431.0,0.20836208]
[1745351691787,0.1212,91432.0,91431.0,0.20836208]
[1745351692395,0.1212,91432.0,91431.0,0.20936208]
[1745351692789,0.1212,91432.0,91431.0,0.21136208]
[1745351693296,0.00016406,91441.0,91432.0,0.0546515]
[1745351693594,0.00016406,91441.0,91436.0,0.1092982]
[1745351693595,0.10945666,91441.0,91436.0,0.1092982]
[1745351693892,0.1222,91440.0,91435.0,0.3608]
[1745351694098,0.1768467,91440.0,91435.0,0.3608]
[1745351694396,0.1092967,91438.0,91435.0,0.3608]
[1745351694596,0.2458,91437.0,91435.0,0.3608]
[1745351694793,0.2458,91437.0,91436.0,0.1334]
[1745351695092,0.00016406,91441.0,91440.0,0.1092935]
[1745351695889,0.00016406,91441.0,91440.0,0.2426935]
[1745351696094,0.00016406,91441.0,91440.0,0.1334]
[1745351696302,0.10945636,91441.0,91440.0,0.1334]
[1745351696686,0.23915636,91441.0,91440.0,0.1334]
[1745351697095,0.109295,91439.0,91435.0,0.3608]
[1745351697291,0.389,91438.0,91435.0,0.34713285]
[1745351697495,0.389,91438.0,91436.0,0.1266]
[1745351697896,0.1092971,91437.0,91436.0,0.1266]
[1745351698090,0.1092982,91436.0,91435.0,0.34713285]
[1745351698289,0.0546519,91432.0,91428.0,0.2479]
[1745351698495,0.1093078,91428.0,91422.0,0.00016406]
[1745351698691,0.1093078,91428.0,91425.0,0.1266]
[1745351699096,0.0546527,91430.0,91425.0,0.1266]
[1745351699401,0.3607069,91429.0,91428.0,0.1263]
[1745351699602,0.1093078,91428.0,91422.0,0.00016406]
[1745351699793,0.2514,91429.0,91423.0,0.1263]
[1745351699995,0.2514,91428.0,91426.0,0.1093097]
[1745351700192,0.192,91428.0,91422.0,0.00016406]
[1745351700898,0.3013078,91428.0,91422.0,0.00016406]
[1745351701202,0.1093138,91423.0,91422.0,0.00016406]
[1745351701698,0.9275302,91423.0,91407.0,0.01177835]
[1745351701890,0.9275302,91423.0,91396.0,0.3608]
[1745351701891,0.1093333,91407.0,91400.0,0.20881234]
[1745351702095,0.3587343,91406.0,91400.0,0.20881234]
[1745351702297,0.2494,91406.0,91396.0,0.3608]
[1745351702799,0.1246,91406.0,91403.0,0.1093373]
[1745351703304,0.1246,91406.0,91405.0,0.1093353]
[1745351703600,0.1246,91406.0,91403.0,0.0546686]
[1745351703801,0.1246,91406.0,91400.0,0.0546706]
[1745351704007,0.1246,91406.0,91402.0,0.1093382]
[1745351704897,0.00016406,91410.0,91405.0,0.0546671]
[1745351705098,0.00016406,91410.0,91409.0,0.1093305]
[1745351705893,0.00016406,91410.0,91406.0,0.180467]
[1745351705894,0.36096406,91410.0,91406.0,0.1258]
[1745351706094,0.1263,91409.0,91406.0,0.1258]
[1745351706407,0.1263,91409.0,91402.0,0.004]
[1745351706608,0.1211,91408.0,91404.0,0.1093357]
[1745351707208,0.1263,91407.0,91403.0,0.236137]
[1745351707504,0.1263,91407.0,91404.0,0.1093363]
[1745351708099,0.1263,91407.0,91406.0,0.1093341]
[1745351708600,0.36096406,91410.0,91407.0,0.1093324]
[1745351708804,0.36096406,91410.0,91404.0,0.003]
[1745351708996,0.36096406,91410.0,91403.0,0.1268]
[1745351709202,0.36096406,91410.0,91407.0,0.1093318]
[1745351709397,0.36096406,91410.0,91408.0,0.2412317]
[1745351710003,0.36096406,91410.0,91409.0,0.1093305]
[1745351710713,0.00016406,91410.0,91409.0,0.1093305]
[1745351711202,0.00016406,91410.0,91409.0,0.2322305]
[1745351711506,0.00016406,91410.0,91409.0,0.2412305]
[1745351712698,0.00016406,91410.0,91409.0,0.1319]
[1745351713107,0.30149336,91410.0,91409.0,0.1319]
[1745351713501,0.43459336,91410.0,91409.0,0.1319]
[1745351713704,0.43459336,91410.0,91409.0,0.1279]
[1745351713906,0.43459336,91410.0,91409.0,0.008]
[1745351714408,0.1093353,91405.0,91404.0,0.1229]
[1745351715106,0.2466676,91405.0,91398.0,0.1231]
[1745351715306,0.1093423,91400.0,91399.0,0.1271]
[1745351715704,0.4853423,91400.0,91399.0,0.1271]
[1745351715902,0.1093437,91398.0,91397.0,0.00026]
[1745351716107,0.1093488,91394.0,91392.0,0.1237445]
[1745351716309,0.1251,91393.0,91392.0,0.1231]
[1745351716500,0.2344497,91393.0,91392.0,0.1231]
[1745351717212,0.2344497,91393.0,91386.0,0.00026]
[1745351717213,0.6779,91393.0,91386.0,0.00026]
[1745351717412,0.1256,91392.0,91386.0,0.00026]
[1745351717622,0.1256,91392.0,91388.0,0.1238]
[1745351717910,0.1279,91391.0,91388.0,0.1238]
[1745351718302,0.1256,91390.0,91388.0,0.1238]
[1745351718507,0.192,91392.0,91388.0,0.1238]
[1745351719104,0.192,91392.0,91388.0,0.1268]
[1745351719418,0.1256,91395.0,91389.0,0.1335]
[1745351720412,0.1282,91400.0,91389.0,0.1335]
[1745351720413,0.4701402,91401.0,91389.0,0.1335]
[1745351720716,0.1243,91399.0,91390.0,0.20881234]
[1745351721108,0.1243,91399.0,91391.0,0.2572]
[1745351722203,0.1243,91399.0,91391.0,0.2592]
[1745351723720,0.1243,91399.0,91391.0,0.2612]
[1745351725818,0.1243,91399.0,91391.0,0.2632]
[1745351726420,0.1243,91399.0,91391.0,0.2612]
[1745351726814,0.1243,91399.0,91391.0,0.2622]
[1745351727412,0.1243,91399.0,91391.0,0.2592]
[1745351727718,0.1243,91399.0,91391.0,0.2612]
[1745351727921,0.1243,91399.0,91391.0,0.2622]
[1745351728419,0.1243,91399.0,91391.0,0.2572]
[1745351728617,0.1243,91399.0,91391.0,0.2612]
[1745351729013,0.1243,91399.0,91391.0,0.2622]
[1745351729412,0.127,91398.0,91391.0,0.2622]